[Event "II Duchamp Open 2018"]
[Site "Rio de Janeiro"]
[Date "2018.11.19"]
[Round "8"]
[White "Brito, Vicente De Paulo Al"]
[Black "Ferreira, Kleber Victor"]
[Result "1/2-1/2"]
[ECO "C55"]
[WhiteElo "2044"]
[BlackElo "2053"]
[Annotator "NA RC"]
[PlyCount "84"]
[EventDate "2018.11.14"]
[EventType "swiss"]
[EventCountry "BRA"]
[SourceTitle "playchess.com"]
[Source "ChessBase"]
[SourceQuality "1"]
[TimeControl "5400+30"]

{[%evp 8,84,-14,0,-5,-24,-1,0,18,0,9,0,8,1,15,-3,16,0,10,20,29,20,47,24,21,-20,10,-22,-16,-51,-23,-23,-11,-37,0,0,0,0,33,-70,-74,-44,-22,-72,-66,-70,-60,-58,-30,-44,0,0,0,-63,-26,-174,-63,-64,-7,-8,-8,-8,-7,-8,-7,-7,-8,-7,0,0,-2,0,0,0,0,0,8,0,0]} 1. e4 {[%emt 0:00:00]} e5 {[%emt 0:00:00]} 2. Bc4 {[%emt 0:00:54]} Nc6 {[%emt 0:01:13]} 3. Nf3 {[%emt 0:00:20]} Nf6 {[%emt 0:00:07]} 4. d4 {[%emt 0:00:41]} exd4 {[%emt 0:00:15]} 5. e5 {[%emt 0:00:26]} d5 {[%emt 0:00:33]} 6. Bb5 {[%emt 0:00:20]} Ne4 {[%emt 0:00:13]} 7. Nxd4 {[%emt 0:00:14]} Bd7 {[%emt 0:00:47]} 8. Bxc6 {[%emt 0:00:27]} bxc6 {[%emt 0:00:04]} 9. O-O {[%emt 0:00:55]} Bc5 {[%emt 0:04:51]} 10. f3 {[%emt 0:01:01]} Ng5 {[%emt 0:01:02]} 11. Be3 {[%emt 0:00:19]} O-O {[%emt 0:01:46]} 12. f4 {[%emt 0:00:35]} Ne4 {[%emt 0:00:51]} 13. Nd2 {[%emt 0:00:43]} Nxd2 {[%emt 0:01:39]} 14. Qxd2 {[%emt 0:00:04]} f6 {[%emt 0:02:55] LiveBook: 32 Games} 15. b4 {[%emt 0:10:30] C56: Two Knights: 4 d4 exd4 5 0-0 Nxe4} (15. Nb3 Bb6 16. Bc5 fxe5 17. fxe5 Qh4 18. Kh1 Rxf1+ 19. Rxf1 Re8 20. Qe3 h6 21. Qf3 Qg4 22. Qf7+ Kh7 {0-1 (76) Socko,B (2604)-Ernst,T (2368) Sweden 2017}) 15... Bb6 {[%emt 0:04:45]} 16. Nb3 {[%emt 0:10:36]} Qe7 {[%emt 0:09:14]} 17. Rae1 {[%emt 0:04:48]} fxe5 $146 {[%emt 0:02:59]} ({Predecessor:} 17... Rae8 18. Bc5 fxe5 19. Rxe5 Qf7 20. Qe2 Qg6 21. Kh1 Bg4 22. Qe3 Rxe5 23. Qxe5 {½-½ (58) Baldursson,R (1890)-Nielsen,T (2109) Faroe Islands 2012}) 18. Bxb6 {[%emt 0:09:20]} axb6 {[%emt 0:00:43]} 19. Rxe5 {[%emt 0:00:36]} Qf6 {[%emt 0:01:22]} 20. c3 {[%emt 0:04:53]} Rf7 {[%emt 0:05:28]} 21. g3 {[%emt 0:09:55]} Bh3 {[%emt 0:05:31]} 22. Rfe1 {[%emt 0:01:27]} Raf8 {[%emt 0:00:29]} 23. Re8 {[%emt 0:02:21]} ({White should try} 23. Nd4 $14) 23... g5 $1 {[%emt 0:05:31]} 24. Rxf8+ {[%emt 0:03:07]} Rxf8 {[%emt 0:00:32]} 25. Qd4 {[%emt 0:16:18]} gxf4 {[%emt 0:00:44]} 26. Qxf6 {[%emt 0:01:05]} Rxf6 {[%emt 0:00:07]} 27. Kf2 {[%emt 0:03:30]} fxg3+ {[%emt 0:07:36]} 28. Kxg3 {[%emt 0:00:02]} Bf5 {[%emt 0:04:29]} 29. Re7 {[%emt 0:02:37]} Rf7 {[%emt 0:02:23]} 30. Rxf7 {[%emt 0:04:04]} (30. Re8+ $11 Kg7 31. a4) 30... Kxf7 {[%emt 0:00:02]} 31. a4 $2 {[%emt 0:01:27]} (31. Nd4 $11 {and White is okay.} Bd7 32. Kf4) 31... Bc8 {[%emt 0:07:05]} (31... Bc2 $19 32. Nd2 Bxa4) 32. Nd4 {[%emt 0:05:45]} c5 {[%emt 0:05:13]} 33. bxc5 $1 {[%emt 0:00:26]} bxc5 {[%emt 0:00:44]} 34. Nb5 {[%emt 0:04:34]} Bd7 {[%emt 0:09:57]} 35. Nxc7 {[%emt 0:00:37]} Bxa4 {[%emt 0:00:29]} 36. Nxd5 {[%emt 0:00:03]} Ke6 {[%emt 0:00:53]} 37. Nf4+ {[%emt 0:01:29]} Ke5 {[%emt 0:01:47]} 38. Kf3 {[%emt 0:00:04]} Bc6+ {[%emt 0:05:12]} 39. Ke3 {[%emt 0:00:08]} c4 {[%emt 0:02:58]} 40. Ne2 {[%emt 0:00:51]} h6 {[%emt 0:02:02]} 41. Nd4 {[%emt 0:00:42]} Be8 $11 {[%emt 0:01:46]} 42. Ne2 {[%emt 0:00:39]} h5 1/2-1/2

[Event "II Duchamp Open 2018"]
[Site "Rio de Janeiro"]
[Date "2018.11.20"]
[Round "8"]
[White "Urquiza, Marcello de Albuque"]
[Black "Okamura, Milton Kasuo"]
[Result "1/2-1/2"]
[ECO "B44"]
[WhiteElo "2018"]
[BlackElo "2038"]
[Annotator "NA RC"]
[PlyCount "110"]
[EventDate "2018.11.14"]
[EventType "swiss"]
[EventCountry "BRA"]
[SourceTitle "playchess.com"]
[Source "ChessBase"]
[SourceQuality "1"]
[TimeControl "5400+30"]

{[%evp 9,110,14,31,14,12,9,12,8,60,58,57,55,65,48,59,54,77,63,113,87,94,61,60,105,111,116,101,111,136,118,137,109,198,143,227,191,226,231,249,191,239,216,332,281,351,352,342,0,181,102,104,89,32767,32767,32767,32767,95,59,85,62,67,72,98,23,117,0,0,0,0,-2,0,0,0,0,-8,0,0,0,0,-8,0,-11,0,0,0,0,0,-69,0,-71,-46,-86,-84,-71,0,0,0,0,0,0,0,0,0]} 1. e4 {[%emt 0:00:00]} c5 {[%emt 0:00:00]} 2. Nf3 {[%emt 0:00:00]} e6 {[%emt 0:00:00]} 3. d4 {[%emt 0:00:00]} cxd4 {[%emt 0:00:00]} 4. Nxd4 {[%emt 0:00:11]} Nc6 {[%emt 0:00:00]} 5. Nb5 {[%emt 0:03:42]} d6 {[%emt 0:00:18]} 6. c4 {[%emt 0:01:37]} Nf6 {[%emt 0:01:50]} 7. N1c3 {[%emt 0:00:24]} a6 {[%emt 0:00:30]} 8. Nd4 {[%emt 0:00:17]} Qc7 {[%emt 0:02:12]} 9. Be2 {[%emt 0:00:32]} Ne5 {[%emt 0:01:49]} 10. Be3 {[%emt 0:09:02]} Be7 {[%emt 0:02:41]} 11. Rc1 {[%emt 0:00:33]} O-O {[%emt 0:00:20]} 12. O-O {[%emt 0:00:08]} b6 {[%emt 0:00:21]} 13. f4 {[%emt 0:05:52]} Ned7 {[%emt 0:03:02]} 14. Bf3 {[%emt 0:03:50]} Bb7 {[%emt 0:00:51]} 15. Qe2 {[%emt 0:00:43]} Rfe8 {[%emt 0:00:42] LiveBook: 3 Games [#] B41: Sicilian: Kan Variation: 5 c4} 16. g4 $1 {[%emt 0:10:08]} Nf8 {[%emt 0:28:56]} (16... Nc5 17. Bf2 e5 18. fxe5 dxe5 19. Nf5 Bd8 20. Nd5 Qb8 21. Bxc5 bxc5 22. Bg2 Nd7 23. Qf2 {0-1 (51) Milos,G (2620)-Morozevich,A (2748) Internet 2000}) 17. g5 {[%emt 0:08:08]} N6d7 {[%emt 0:00:07]} 18. h4 {[%emt 0:00:18]} Rac8 {[%emt 0:02:24]} 19. b3 $146 {[%emt 0:00:52]} ({Predecessor:} 19. Qf2 Qb8 20. b3 Nc5 21. Rfd1 Qa8 22. Qg2 Ng6 23. Qh1 {0-1 (61) Geller,A (2265)-Levin,F (2320) Belgorod 1989}) 19... Qb8 {[%emt 0:02:19]} 20. Qg2 {[%emt 0:07:43]} Nc5 {[%emt 0:03:53]} (20... e5 $16 {keeps fighting.}) 21. f5 {[%emt 0:05:32]} Nd3 {[%emt 0:01:19]} (21... Bd8 $16 22. f6 Ng6) 22. f6 {[%emt 0:01:22]} Bd8 {[%emt 0:00:11]} 23. fxg7 {[%emt 0:02:46]} Kxg7 {[%emt 0:04:25]} 24. Rc2 {[%emt 0:07:54]} Ne5 {[%emt 0:11:18]} 25. Rcf2 {[%emt 0:02:35]} b5 {[%emt 0:01:11]} (25... Rc7 $142 26. Be2 Kg8) 26. Bh5 {[%emt 0:07:05]} Nfg6 {[%emt 0:01:35]} 27. Bxg6 {[%emt 0:00:29]} hxg6 {[%emt 0:00:28] [#]} 28. Bf4 $2 {[%emt 0:00:16]} (28. h5 $1 $18 {[%cal Rh5g6]} gxh5 29. Qh3) 28... Rf8 $2 {[%emt 0:01:04] [#]} (28... Bb6 $1 $11 {and Black stays safe.} 29. Bxe5+ (29. c5 $2 Rxc5 30. Nce2 Kg8 $19) 29... dxe5 30. Rxf7+ Kg8) 29. Bxe5+ {[%emt 0:04:43]} (29. h5 $1 $18 Qa7 30. Nce2) 29... dxe5 {[%emt 0:00:39]} 30. Nxe6+ $1 {[%emt 0:00:12] Pin} fxe6 {[%emt 0:00:09]} 31. Rxf8 {[%emt 0:00:04]} Bb6+ {[%emt 0:00:11]} 32. R8f2 {[%emt 0:00:06]} Rf8 $1 {[%emt 0:11:09] [#]} 33. Kh2 $1 {[%emt 0:00:30]} Bxf2 {[%emt 0:00:31]} 34. Rxf2 {[%emt 0:00:08]} Rf4 {[%emt 0:00:09]} 35. Rxf4 {[%emt 0:08:38]} ({Don't play} 35. cxb5 Rxh4+ 36. Kg1 axb5 $11) 35... exf4 {[%emt 0:00:03]} 36. cxb5 {[%emt 0:00:57]} axb5 {[%emt 0:04:50]} (36... Qe5 $1 $11 {keeps the balance.} 37. bxa6 Bxa6) 37. Qf3 {[%emt 0:03:37]} ({Much weaker is} 37. Nxb5 $6 Qe5 $11 {[%mdl 64] Double Attack}) (37. Qd2 $16) 37... b4 {[%emt 0:00:22]} 38. Ne2 {[%emt 0:00:19]} e5 {[%emt 0:00:10]} 39. Qd3 $1 {[%emt 0:02:03]} Qc7 {[%emt 0:01:41]} 40. Ng1 {[%emt 0:01:13]} Kf7 {[%emt 0:05:36]} 41. Nf3 {[%emt 0:00:41]} Ke7 {[%emt 0:00:08]} 42. Kg2 {[%emt 0:02:33]} Qc3 {[%emt 0:02:12]} 43. Qe2 {[%emt 0:00:59]} Ke6 {[%emt 0:01:59]} 44. Kf1 {[%emt 0:01:03]} Qc1+ {[%emt 0:02:38]} 45. Kf2 {[%emt 0:00:48]} Qc5+ {[%emt 0:00:18]} 46. Kg2 {[%emt 0:00:47]} Bc6 {[%emt 0:00:24]} 47. Nd2 {[%emt 0:00:38]} Bb5 {[%emt 0:01:27]} 48. Nc4 {[%emt 0:00:20]} (48. Qf2 $11 Qc6 49. Qa7) 48... Qd4 {[%emt 0:00:49]} 49. Kf3 {[%emt 0:00:16]} (49. Kh2 $11 {remains equal.}) 49... Qc3+ {[%emt 0:00:30]} 50. Kg2 {[%emt 0:00:55]} Qg3+ {[%emt 0:00:53]} 51. Kf1 {[%emt 0:00:11]} Qxh4 {[%emt 0:00:24]} (51... Qh3+ $17 52. Qg2 Qd3+ 53. Qe2 Qh3+ 54. Qg2 Qc3) 52. Qd3 {[%emt 0:00:20]} Qh1+ {[%emt 0:01:21]} 53. Kf2 {[%emt 0:00:48]} Qh2+ {[%emt 0:02:55]} 54. Kf1 {[%emt 0:01:01]} Qh1+ {[%emt 0:00:33]} 55. Kf2 {[%emt 0:00:21]} Qh2+ $11 {[%emt 0:00:44]} 1/2-1/2

[Event "II Duchamp Open 2018"]
[Site "Rio de Janeiro"]
[Date "2018.11.19"]
[Round "8"]
[White "Fucs, Paulo Moses"]
[Black "Reis, Virginia Lagrange M"]
[Result "1-0"]
[ECO "B20"]
[WhiteElo "2016"]
[BlackElo "1750"]
[Annotator "NA RC"]
[PlyCount "78"]
[EventDate "2018.11.14"]
[EventType "swiss"]
[EventCountry "BRA"]
[SourceTitle "playchess.com"]
[Source "ChessBase"]
[SourceQuality "1"]
[TimeControl "5400+30"]

{[%evp 8,74,0,-1,5,0,14,2,8,0,8,8,24,0,4,19,31,-27,0,-18,-6,-41,-18,-41,-4,-15,-23,-12,-19,-57,13,-25,-8,0,-12,-11,1,-50,-23,-80,0,-83,-74,-117,-104,-126,-128,-161,-130,-119,-134,-161,-159,-216,-227,-310,-337,-304,-340,-973,-248,-236,-258,-296,-216,-268,-156,-140,-177]} 1. e4 {[%emt 0:00:00]} c5 {[%emt 0:00:18]} 2. c4 {[%emt 0:00:04]} e5 {[%emt 0:00:23]} 3. Nc3 {[%emt 0:00:15]} Nf6 {[%emt 0:01:17]} 4. Nf3 {[%emt 0:00:46]} Nc6 {[%emt 0:00:32]} 5. d3 {[%emt 0:00:20]} d6 {[%emt 0:00:11]} 6. Be2 {[%emt 0:00:35]} Be7 {[%emt 0:00:21]} 7. O-O {[%emt 0:01:07] LiveBook: 8 Games B30: Sicilian: 2...Nc6 3 Bb5, lines without ...g6} O-O {[%emt 0:00:09]} 8. a3 {[%emt 0:01:15]} (8. Nd5 Nxd5 9. cxd5 Nb8 10. Nd2 Bg5 11. Nc4 Bxc1 12. Qxc1 b5 13. Ne3 Nd7 14. Bg4 Nb6 15. Bxc8 Rxc8 {½-½ (58) Medvegy,Z (2536)-Banusz,T (2596) Germany 2014}) 8... Ne8 {[%emt 0:01:12]} 9. Rb1 {[%emt 0:03:35]} f5 $146 {[%emt 0:01:14]} ({Predecessor:} 9... a5 10. Nd5 f5 11. Bd2 Nf6 12. Nxf6+ Rxf6 13. b4 axb4 14. axb4 b6 {1-0 (30) Aliaga Fernandez,I (2157)-Delai,P (2030) Araruama 2011}) 10. exf5 {[%emt 0:00:30]} Bxf5 {[%emt 0:00:37]} 11. b4 {[%emt 0:01:35]} b6 {[%emt 0:03:21]} 12. Be3 {[%emt 0:02:38]} (12. b5 $14 Nd4 13. Nxd4 cxd4 14. Nd5) 12... Nf6 {[%emt 0:01:10]} 13. Ne1 {[%emt 0:05:09]} Nd4 {[%emt 0:02:48]} 14. f4 {[%emt 0:04:23]} Nxe2+ {[%emt 0:01:13]} 15. Qxe2 {[%emt 0:01:13]} Bg4 {[%emt 0:07:41]} ({Better is} 15... e4 $15) 16. Nf3 {[%emt 0:04:55]} exf4 {[%emt 0:00:59]} 17. Bxf4 {[%emt 0:01:17]} Nh5 {[%emt 0:00:29]} 18. Be3 {[%emt 0:00:59]} Nf6 {[%emt 0:10:47]} ({Better is} 18... Qd7 $15) 19. Kh1 {[%emt 0:03:39]} Qe8 {[%emt 0:03:36]} 20. Bg1 {[%emt 0:01:17]} Qd7 {[%emt 0:01:47]} 21. h3 {[%emt 0:04:03]} Bh5 {[%emt 0:02:46]} 22. Rbd1 {[%emt 0:05:48]} Rae8 {[%emt 0:01:17]} 23. Qd2 {[%emt 0:00:40]} Qb7 {[%emt 0:02:31]} (23... d5 $17 24. bxc5 Bxc5) 24. Bh2 {[%emt 0:01:21]} (24. Rde1 $11) 24... d5 {[%emt 0:03:50]} 25. Nb5 {[%emt 0:08:21]} dxc4 {[%emt 0:07:08]} 26. dxc4 {[%emt 0:04:12]} Rd8 {[%emt 0:01:39]} 27. Qe2 {[%emt 0:05:30]} Rxd1 {[%emt 0:04:01]} 28. Qxd1 {[%emt 0:00:12]} cxb4 {[%emt 0:00:55]} 29. axb4 {[%emt 0:00:14]} Bxb4 {[%emt 0:00:34]} 30. Qa4 {[%emt 0:00:38]} (30. Qb1 $17 a5 31. Bd6) 30... a5 {[%emt 0:00:27]} 31. Ng5 {[%emt 0:04:34]} Ne4 {[%emt 0:02:24]} 32. Rxf8+ {[%emt 0:02:02]} Bxf8 {[%emt 0:00:31]} 33. Ne6 $2 {[%emt 0:01:08]} (33. Nxe4 Qxe4 34. Bg1) 33... Nc5 $2 {[%emt 0:02:39]} (33... Nf2+ 34. Kg1 Qe4) 34. Nxc5 {[%emt 0:02:30]} Bxc5 {[%emt 0:00:03]} 35. Bg1 {[%emt 0:05:37]} Bb4 {[%emt 0:01:20]} 36. Nd4 {[%emt 0:00:55]} h6 {[%emt 0:03:01]} 37. Qb5 {[%emt 0:00:35]} Bc5 $19 {[%emt 0:00:58]} 38. Ne6 Bxg1 39. Qxh5 {[%emt 0:04:06]} Kh8 1-0

[Event "II Duchamp Open 2018"]
[Site "Rio de Janeiro"]
[Date "2018.11.20"]
[Round "8"]
[White "Ramos, Angelo Bil"]
[Black "Torella, Rodolfo"]
[Result "1/2-1/2"]
[ECO "B30"]
[WhiteElo "1952"]
[BlackElo "2036"]
[Annotator "NA RC"]
[PlyCount "138"]
[EventDate "2018.11.14"]
[EventType "swiss"]
[EventCountry "BRA"]
[SourceTitle "playchess.com"]
[Source "ChessBase"]
[SourceQuality "1"]
[TimeControl "5400+30"]

{[%evp 8,138,17,-7,23,5,13,0,0,-1,-11,0,34,20,38,0,33,18,19,6,21,-22,-7,-12,-6,-3,-7,-11,0,0,56,-27,-12,-35,-31,-37,-18,-22,-17,-22,-8,-10,-5,-62,-74,-85,-62,-83,-85,-87,7,-45,-50,-63,-47,-81,0,0,0,0,37,47,37,0,0,0,162,122,210,209,32767,32767,32767,32767,32767,32767,32767,307,311,181,195,208,621,245,223,203,133,68,114,68,32767,32767,32767,32767,50,47,54,39,50,67,63,8,8,8,54,15,16,8,8,8,8,8,8,8,8,8,8,8,8,8,8,8,33,8,51,8,8,0,0,0,0,0,0]} 1. e4 {[%emt 0:00:00]} c5 {[%emt 0:00:00]} 2. Nf3 {[%emt 0:00:00]} Nc6 {[%emt 0:00:00]} 3. Bb5 {[%emt 0:00:46]} e6 {[%emt 0:00:00]} 4. Nc3 {[%emt 0:01:11]} Nge7 {[%emt 0:01:07] LiveBook: 626 Games} 5. a4 {[%emt 0:03:03]} g6 {[%emt 0:03:20]} 6. d4 {[%emt 0:02:19]} cxd4 {[%emt 0:00:21]} 7. Nxd4 {[%emt 0:00:10]} Bg7 {[%emt 0:00:13]} 8. Be3 {[%emt 0:00:19]} O-O {[%emt 0:01:05]} 9. O-O {[%emt 0:00:10]} Qc7 {[%emt 0:11:46]} 10. Be2 {[%emt 0:09:49]} a6 {[%emt 0:02:26]} 11. Qd2 {[%emt 0:12:31]} Rd8 {[%emt 0:12:05]} 12. Rad1 {[%emt 0:02:48]} d5 {[%emt 0:01:54]} 13. exd5 {[%emt 0:03:29]} Nxd5 {[%emt 0:00:25]} 14. Nxd5 {[%emt 0:09:12]} Rxd5 {[%emt 0:00:37]} 15. c3 {[%emt 0:04:49]} Nxd4 {[%emt 0:11:26]} 16. cxd4 {[%emt 0:00:21]} Bd7 {[%emt 0:05:47]} 17. Bf3 {[%emt 0:03:27]} Rd6 {[%emt 0:02:10]} 18. Qb4 {[%emt 0:04:31]} Qb6 {[%emt 0:06:32]} (18... Rb6 $11 19. Qa5 Rc6 20. Qxc7 Rxc7) 19. Qxb6 {[%emt 0:07:54]} (19. Qa3 $14) 19... Rxb6 {[%emt 0:00:02]} 20. a5 {[%emt 0:01:08]} Rxb2 {[%emt 0:07:43]} 21. Rb1 {[%emt 0:00:50]} Rb5 {[%emt 0:02:17]} 22. Bxb7 {[%emt 0:03:18]} Rb8 {[%emt 0:00:36]} 23. Be4 {[%emt 0:00:25]} Bf8 {[%emt 0:03:07]} 24. Bf4 {[%emt 0:01:49]} Rc8 {[%emt 0:06:52]} 25. Rxb5 {[%emt 0:07:27]} (25. Bb7 $11 Rc2 26. Bxa6 Rxa5 27. Bd3) 25... Bxb5 {[%emt 0:01:11]} 26. Rb1 {[%emt 0:01:17]} Rc4 {[%emt 0:03:03]} 27. Bd3 {[%emt 0:01:56]} Rxd4 {[%emt 0:01:35]} 28. Bxb5 {[%emt 0:00:16]} axb5 {[%emt 0:00:35]} (28... Rxf4 $17 29. g3 Rf5 30. Bxa6 Rxa5) 29. Be5 {[%emt 0:02:13]} ({White should try} 29. g3 $11) 29... Rd5 {[%emt 0:02:17]} 30. Bc7 {[%emt 0:03:35]} b4 {[%emt 0:01:19]} 31. Kf1 {[%emt 0:01:03]} Bc5 {[%emt 0:00:48]} (31... Rd2 $15 32. Be5 Rd5) 32. Ke2 {[%emt 0:00:14]} Kf8 {[%emt 0:00:38]} 33. a6 {[%emt 0:01:20]} Ke7 {[%emt 0:05:33]} 34. Bb8 {[%emt 0:00:17]} Rd7 {[%emt 0:01:09]} 35. Rd1 {[%emt 0:02:31]} (35. Ra1 $5 {[%cal Ra6a7]}) 35... b3 {[%emt 0:02:00]} 36. Rb1 {[%emt 0:01:25]} Ba7 $2 {[%emt 0:01:11]} (36... Rd4 $1 $11 {and Black stays safe.}) 37. Rxb3 {[%emt 0:00:18]} Bxb8 {[%emt 0:00:45]} (37... Kf6 $16) 38. Rxb8 {[%emt 0:00:09]} Kd6 {[%emt 0:00:06]} 39. Rb6+ {[%emt 0:02:04]} Ke5 {[%emt 0:01:18]} 40. Rb7 {[%emt 0:00:24]} Rd6 {[%emt 0:00:04]} 41. a7 {[%emt 0:02:01]} Ra6 {[%emt 0:00:09]} 42. Rxf7 {[%emt 0:00:21]} h5 {[%emt 0:00:11]} 43. g3 {[%emt 0:01:00]} (43. Rd7 $142) 43... g5 {[%emt 0:01:00]} 44. h3 {[%emt 0:00:50]} h4 $2 {[%emt 0:00:44]} (44... Ke4 45. Kd2 Kd5) 45. Kf3 $2 {[%emt 0:01:46]} (45. g4 Kd5 46. f4 Ra2+ 47. Ke3 gxf4+ 48. Kxf4) 45... Ra4 {[%emt 0:00:49]} 46. Kg2 {[%emt 0:01:01]} Ra3 {[%emt 0:00:29] [#]} 47. gxh4 {[%emt 0:02:26]} (47. g4 $1 $18) 47... gxh4 {[%emt 0:00:15]} 48. Rh7 {[%emt 0:00:08]} Kf5 {[%emt 0:00:35]} 49. Rxh4 {[%emt 0:00:07]} Rxa7 {[%emt 0:00:02]} 50. Rg4 {[%emt 0:00:11]} e5 {[%emt 0:00:47]} 51. f3 {[%emt 0:00:20]} Rh7 {[%emt 0:00:40]} 52. Kg3 {[%emt 0:00:10]} Rd7 {[%emt 0:00:52]} 53. h4 {[%emt 0:00:17]} Rd1 {[%emt 0:00:57]} 54. Rg5+ {[%emt 0:01:15]} (54. Rc4 $14) 54... Kf6 {[%emt 0:00:07]} 55. Kf2 {[%emt 0:02:03]} Rh1 {[%emt 0:00:24]} 56. Rh5 {[%emt 0:00:31]} Kg6 {[%emt 0:01:29]} 57. Rxe5 {[%emt 0:00:52]} Rxh4 {[%emt 0:00:03]} 58. Kg3 {[%emt 0:00:15]} Ra4 {[%emt 0:00:15]} 59. f4 {[%emt 0:00:44]} Kf6 {[%emt 0:00:39]} 60. Rb5 {[%emt 0:00:13]} Ra6 {[%emt 0:00:51]} 61. Kg4 {[%emt 0:00:12]} Rc6 {[%emt 0:01:12]} 62. Rh5 {[%emt 0:00:21]} Kg7 {[%emt 0:01:47]} 63. Rf5 {[%emt 0:00:17]} Rc1 {[%emt 0:00:29]} 64. Rd5 {[%emt 0:00:16]} Kf6 {[%emt 0:00:38]} 65. Rd6+ {[%emt 0:00:07]} Ke7 {[%emt 0:00:13]} 66. Ra6 {[%emt 0:00:10]} Rc5 {[%emt 0:00:13]} 67. f5 {[%emt 0:00:31]} Rc1 {[%emt 0:00:15]} 68. Re6+ {[%emt 0:00:26]} Kf7 {[%emt 0:00:10]} 69. Re3 {[%emt 0:01:34]} Kf6 $11 {[%emt 0:00:51]} 1/2-1/2

[Event "II Duchamp Open 2018"]
[Site "Rio de Janeiro"]
[Date "2018.11.20"]
[Round "9"]
[White "Okamura, Milton Kasuo"]
[Black "Moyses Sobrinho, Elias"]
[Result "0-1"]
[ECO "A43"]
[WhiteElo "2038"]
[BlackElo "1931"]
[Annotator "NA RC"]
[PlyCount "84"]
[EventDate "2018.11.14"]
[EventType "swiss"]
[EventCountry "BRA"]
[SourceTitle "playchess.com"]
[Source "ChessBase"]
[SourceQuality "1"]
[TimeControl "5400+30"]

{[%evp 20,83,105,83,101,87,105,102,126,32767,32767,32767,32767,127,123,99,124,119,102,32767,94,91,139,32767,32767,32767,32767,124,135,90,93,130,127,29,25,22,33,1,33,28,32767,32767,32767,-183,-255,-241,-254,-254,-279,-5289,-1035,-1155,-30,-22,0,-157,-171,-620,-433,-399,32767,32767,32767,32767,32767,-29989]} 1. d4 {[%emt 0:00:00]} Nf6 {[%emt 0:05:55]} 2. c4 {[%emt 0:00:00]} c5 {[%emt 0:00:11]} 3. d5 {[%emt 0:00:00]} d6 {[%emt 0:00:12]} 4. Nc3 {[%emt 0:00:03]} g6 {[%emt 0:00:08]} 5. e4 {[%emt 0:00:21]} Bg7 {[%emt 0:00:08]} 6. h3 {[%emt 0:00:23]} O-O {[%emt 0:00:49]} 7. Nf3 {[%emt 0:00:10]} Nbd7 {[%emt 0:00:36]} 8. Bd3 {[%emt 0:00:19]} a6 {[%emt 0:03:21]} 9. O-O {[%emt 0:00:27] E90: King's Indian: Classical: Early deviations and 6 h3} (9. a4 b6 10. O-O e5 11. a5 bxa5 12. Qa4 Rb8 13. Qxa5 Qe7 14. Rb1 Nh5 15. Bg5 f6 16. Bd2 Nf4 {0-1 (43) Matlakov,M (2728)-Aronian,L (2799) Tbilisi 2017}) 9... Nh5 {[%emt 0:01:01]} 10. Be2 $146 {[%emt 0:03:10]} ({Predecessor:} 10. Bg5 Qe8 11. Qd2 f6 12. Be3 g5 13. g4 Nf4 14. Bxf4 gxf4 15. Qxf4 Ne5 16. Qe3 h5 17. Nxe5 fxe5 {½-½ (36) Turzo,A (2265)-Kovacs,G (2150) Budapest 1995}) 10... h6 {[%emt 0:09:02]} 11. a4 {[%emt 0:05:23]} Kh7 {[%emt 0:00:15]} 12. Re1 {[%emt 0:01:56]} Nhf6 {[%emt 0:04:11]} 13. Bf4 {[%emt 0:00:29]} Ng8 {[%emt 0:02:13]} 14. Bd3 {[%emt 0:00:35]} Ne5 {[%emt 0:00:11]} 15. Nxe5 {[%emt 0:01:16]} Bxe5 {[%emt 0:00:06]} 16. Bxe5 {[%emt 0:01:06]} dxe5 {[%emt 0:00:10]} 17. Qd2 {[%emt 0:02:27]} Qd6 {[%emt 0:01:39]} 18. a5 {[%emt 0:01:26]} Bd7 {[%emt 0:01:03]} 19. Qe3 {[%emt 0:01:05]} Nf6 {[%emt 0:03:39]} 20. Be2 {[%emt 0:01:06]} b6 {[%emt 0:03:22]} 21. Reb1 {[%emt 0:05:05]} Rfb8 {[%emt 0:00:21]} 22. axb6 {[%emt 0:02:56]} Qxb6 {[%emt 0:01:10]} 23. f4 {[%emt 0:08:24]} Qc7 {[%emt 0:04:33]} 24. fxe5 {[%emt 0:04:23]} Qxe5 {[%emt 0:00:08] [#]} 25. Ra5 $1 {[%emt 0:00:44]} ({Reject} 25. Qxc5 $6 Bxh3 26. gxh3 Qg3+ {[%mdl 64] Double Attack} 27. Kf1 Qxh3+ 28. Kg1 Qg3+ 29. Kh1 Qh3+ 30. Kg1 Qg3+ 31. Kh1 Qh3+ 32. Kg1 $11) 25... Qd4 {[%emt 0:00:36]} 26. Kf2 {[%emt 0:00:22]} (26. Qf2 $16) 26... Rb3 $1 {[%emt 0:03:45]} 27. Bd3 {[%emt 0:05:56]} Rab8 {[%emt 0:01:12]} 28. Rxc5 {[%emt 0:02:27]} Rxb2+ {[%emt 0:02:31]} 29. Rxb2 {[%emt 0:00:13]} Rxb2+ {[%emt 0:00:08]} 30. Ne2 {[%emt 0:00:11]} Qe5 {[%emt 0:03:48] [#]} 31. Ra5 $2 {[%emt 0:01:49] [#]} (31. d6 $1 $11 {[%mdl 512]} Qe6 (31... Qxd6 32. e5) 32. dxe7) 31... Bg4 $1 {[%emt 0:01:18]} 32. Rxa6 {[%emt 0:08:06]} Bxe2 $1 {[%emt 0:00:17]} 33. Bxe2 {[%emt 0:00:20]} Nxe4+ {[%emt 0:01:03]} 34. Ke1 $2 {[%emt 0:06:13]} (34. Kg1 Rb1+ 35. Bf1) 34... f5 {[%emt 0:03:05]} (34... Rb1+ $142 35. Bd1 Qh2 36. Qxe4 Qg1+ 37. Ke2 Qxd1+ 38. Kf2 Qg1+ 39. Kg3 Rb3+ 40. Qf3 Qe1+ 41. Kg4 h5+ 42. Kf4 {[#]} g5+ $1 {[%mdl 512]} 43. Kxg5 Rxf3 44. gxf3 Qe5+ 45. Kh4 Qf4+ {[%mdl 64] Double Attack} 46. Kxh5 f6 47. Rxf6 exf6 48. h4 Qxf3#) 35. Re6 {[%emt 0:01:42]} Qh2 $2 {[%emt 0:04:08]} (35... Rb1+ $19 36. Bd1 Qa1 37. Rxe7+ Kg8) 36. Rxe7+ {[%emt 0:01:27]} Kg8 {[%emt 0:00:11]} 37. Rxe4 $2 {[%emt 0:11:34]} (37. Rg7+ $11 Kxg7 38. Qd4+ Kf7 39. Qxb2) 37... fxe4 {[%emt 0:00:17]} 38. Bf1 $2 {[%emt 0:05:19]} (38. Kf2 $17) 38... Qe5 {[%emt 0:04:22]} 39. Be2 {[%emt 0:01:27]} g5 {[%emt 0:04:24]} 40. Bg4 {[%emt 0:02:18]} Rxg2 {[%emt 0:02:27]} 41. Be6+ {[%emt 0:00:10]} Kh8 {[%emt 0:00:14]} 42. Qa3 {[%emt 0:00:18]} Rg1+ 0-1